Cogmind - Beta 15 @@@ ROGUE MODE // 2025.08.19 @ 02:46:42 // Winter2019/RPGLIKE Player: Toaster Result: Destroyed by 2E-9H7(R) with Subdweller Machine Gun Performance ------------- Evolutions (0) 0 Regions Visited (2) 400 Robots Destroyed (28) 140 Value Destroyed (775) 775 Prototype IDs (0) 0 Alien Tech Used (0) 0 Bonus (0) 0 TOTAL SCORE: 1315 Bonus ------- None Cogmind --------- Core Integrity 0/600 Matter 290/300 Energy 118/160 System Corruption 0% Temperature Cool (0) Movement Walking (126) Location -10/Subcaves Parts ------- > --- POWER (1) -------- Light Nuclear Core > --- PROPULSION (3) --- Aluminum Leg Aluminum Leg Makeshift Leg > --- UTILITY (2) ------ Scrap Shield > --- WEAPON (2) ------- Riot Gun Riot Gun > --- INVENTORY (1) ---- Battle Cannon Peak State ------------ > --- POWER ------------ Light Nuclear Core > --- PROPULSION ------- Aluminum Leg Aluminum Leg Makeshift Leg > --- UTILITY ---------- Makeshift Light Armor Plating Tractor Beam > --- WEAPON ----------- Riot Gun Riot Gun > --- INVENTORY -------- Battle Cannon [Rating: 20] Favorites ----------- Power Light Nuclear Core Engine Ion Engine Power Core Light Nuclear Core Propulsion Aluminum Leg Leg Aluminum Leg Utility Tractor Beam Device Tractor Beam Protection Makeshift Light Armor Plating Weapon Subdweller Machine Gun Energy Gun Riot Gun Ballistic Gun Subdweller Machine Gun Ballistic Cannon Battle Cannon Special Weapon Mining Laser Build | -11 -10 -10 ------- Run | Yrd Mat Sub Slots Evolved 4 | 2 2 . Power . | . . . Propulsion 2 | 1 1 . Utility 1 | . 1 . Weapon 1 | 1 . . Parts Attached 22 | 5 8 9 Power 2 | 1 1 . Engine 1 | 1 . . Core 1 | . 1 . Reactor . | . . . Propulsion 6 | 2 3 1 Treads . | . . . Leg 6 | 2 3 1 Wheel . | . . . Hover . | . . . Flight . | . . . Utility 4 | . 2 2 Device 2 | . 2 . Storage . | . . . Processor . | . . . Hackware . | . . . Protection 2 | . . 2 Artifact . | . . . Weapon 10 | 2 2 6 Energy Gun 3 | 1 . 2 Energy Cannon . | . . . Ballistic Gun 5 | 1 2 2 Ballistic Cannon 1 | . . 1 Launcher . | . . . Special Weapon 1 | . . 1 Impact Weapon . | . . . Slashing Weapon . | . . . Piercing Weapon . | . . . Special Melee Weapon . | . . . Unidentified Prototypes . | . . . Parts Lost . | . . . Power . | . . . Propulsion . | . . . Utility . | . . . Weapon . | . . . Highest Loss Streak . | . . . To Critical Strikes . | . . . Average Backups . | . . . Power . | . . . Propulsion . | . . . Utility . | . . . Weapon . | . . . Tool/Special . | . . . Unused Backups . | . . . Power . | . . . Propulsion . | . . . Utility . | . . . Weapon . | . . . Tool/Special . | . . . Average Slot Usage (%) 91 | . 96 86 Engine 3 | . 7 . Core 10 | . 8 12 Leg 34 | . 32 37 Device 10 | . 13 7 Protection 2 | . . 4 Energy Gun 8 | . 8 9 Ballistic Gun 19 | . 23 14 Peak Build Rating 20 | 5 10 20 Average Rating 10 | 3 7 15 On Entrance 5 | . 5 10 Naked Turns . | . . . Heaviest Build 29 | 9 12 29 Greatest Support 45 | 25 35 45 Greatest Overweight (x) . | . . . Average Overweight (x) . | . . . Largest Inventory Capacity 1 | 1 1 1 Average Capacity . | . 1 1 Most Carried 1 | . 1 1 Average Carried . | . . . Final Capacity 1 | 1 1 1 Final Carried 1 | . 1 1 Class Distribution -------------------- 51% | Mutant 48% | Scavenger-Mutant Dominant Class ---------------- Mutant | -10/Materials Scavenger-Mutant | -10/Subcaves Resources | -11 -10 -10 ----------- Run | Yrd Mat Sub Matter Collected 799 | 250 285 264 Remotely 494 | . 255 239 Salvage Created 890 | . 455 435 Parts 44 | . 30 14 Haulers Intercepted 1 | . 1 . Recyclers Shooed . | . . . Parts Field Recycled . | . . . Retrieved Matter . | . . . Parts Self-Destructed 15 | . . 15 Prevented 1 | . . 1 Kills | -11 -10 -10 ------- Run | Yrd Mat Sub Combat Hostiles Destroyed 23 | . 13 10 Guns 23 | . 13 10 Classes Destroyed 7 | . 4 3 Hauler 1 | . 1 . Turret 2 | . . 2 Watcher 2 | . 2 . Swarmer 7 | . 3 4 Grunt 10 | . 10 . Sentry 1 | . . 1 Subdweller 5 | . . 5 Best Kill Streak 4 | . 3 4 Combat Bots Only 3 | . 3 3 Max Kills in Single Turn 2 | . 2 1 Gunslinging 1 | . 1 . Exploded . | . . . Melee . | . . . Uniques/NPCs Destroyed . | . . . Combat | -11 -10 -10 -------- Run | Yrd Mat Sub Hostile Shots Fired 171 | . 91 80 Missed 48 | . 22 26 Hits 123 | . 69 54 Projectile 123 | . 69 54 Critical Strikes 3 | . 2 1 Damage Taken 1402 | . 771 631 Core 1138 | . 638 500 Absorbed by Shields . | . . . Redirected to Core 868 | . 437 431 Core Remaining (%) 100 | 100 . . Volleys Fired 107 | . 61 46 Largest 2 | . 2 2 Hottest 100 | . 70 100 Shots Fired 197 | . 122 75 Gun 191 | . 122 69 Cannon 1 | . . 1 Launcher . | . . . Special 5 | . . 5 Kinetic 132 | . 78 54 Thermal 49 | . 44 5 Explosive . | . . . Electromagnetic 16 | . . 16 Robot Hit Streak 17 | . 11 17 Robot Miss Streak 4 | . 4 3 Penetration Max . | . . . Secondary Targets 2 | . 2 . Max Gunslinging Chain 1 | . 1 . Shots Hit Robots 129 | . 80 49 Core Hits 51 | . 28 23 Critical Kills 1 | . 1 . Critical Parts Destroyed 1 | . . 1 Critical Strikes 4 | . 3 1 Burn 1 | . 1 . Destroy 3 | . 2 1 Melee Attacks . | . . . Impact . | . . . Slashing . | . . . Piercing . | . . . Sneak Attacks . | . . . Combat Hostiles . | . . . Follow-up Attacks . | . . . Damage Inflicted 2016 | . 1007 1009 Guns 2002 | . 998 1004 Cannons . | . . . Explosions . | . . . Melee . | . . . Ramming 14 | . 9 5 Kinetic 1371 | . 662 709 Thermal 336 | . 336 . Explosive . | . . . Electromagnetic 295 | . . 295 Impact . | . . . Slashing . | . . . Piercing . | . . . Highest Corruption . | . . . Average Corruption . | . . . Corruption Purged . | . . . Corruption Blocked . | . . . Overload Shots . | . . . Overflow Damage . | . . . Projectiles . | . . . Explosions . | . . . Melee . | . . . Knockbacks . | . . . Impact . | . . . Kinetic . | . . . Secondary . | . . . Self-Inflicted Damage . | . . . Shots . | . . . Rammed . | . . . Targets Rammed 3 | . 1 2 Kicked 3 | . 1 2 Crushed . | . . . Highest Temperature 177 | . 177 18 Average Temperature 48 | . 51 12 Received Heat Transfer 534 | . 414 120 Siege Activations . | . . . Martial Activations . | . . . Shielding Activations . | . . . Robots Disrupted . | . . . Combat Hostiles . | . . . Robots Corrupted . | . . . Combat Hostiles . | . . . Parts Fried 4 | . . 4 Impact Corruptions . | . . . Robots Melted . | . . . Combat Hostiles . | . . . Parts Melted 2 | . 2 . Heat Transferred 1073 | . 1073 . Parts Sabotaged . | . . . Parts Stolen . | . . . Parts Stripped . | . . . Power Chain Reactions . | . . . Alert | -11 -10 -10 ------- Run | Yrd Mat Sub Maximum Alert Level . | . . . Low Security (%) 100 | 100 100 . Level 1 . | . . . Level 2 . | . . . Level 3 . | . . . Level 4 . | . . . Level 5 . | . . . High Security . | . . . Max Security . | . . . Peak Influence 90 | . 90 . Initial . | . . . Average 26 | . 27 . Influence Increases 687 | . 397 290 Destroy 0b10 Robot/C 400 | . 260 140 Destroy 0b10 Robot/NC 15 | . 15 . Destroy Leader 66 | . 66 . Successful Hack 25 | . 25 . Select Force Hacks 30 | . 30 . Destroy Structure 1 | . 1 . Lose Combat Pursuer 150 | . . 150 Influence Decreases 601 | . 345 256 Entered New Map 26 | . . 26 Time Decay 575 | . 345 230 Squads Dispatched 4 | . 4 . Investigation 3 | . 3 . Extermination . | . . . Reinforcement 1 | . 1 . Assault . | . . . Garrison . | . . . Intercept . | . . . Searches Triggered . | . . . Construction Impeded . | . . . Haulers Reinforced . | . . . Active Scanning Responses . | . . . Cargo Convoy Interrupts . | . . . Stealth | -11 -10 -10 --------- Run | Yrd Mat Sub Distress Signals . | . . . Communications Jammed . | . . . Distress Signals . | . . . Times Spotted 35 | . 21 14 Peak Tracking Total 6 | . 5 6 Tactical Retreats 3 | . . 3 Traps | -11 -10 -10 ------- Run | Yrd Mat Sub Traps Triggered 1 | . 1 . Indirectly . | . . . Trap Hack Attempts . | . . . Triggered . | . . . Disarmed . | . . . Reprogrammed . | . . . Reused . | . . . Traps Extracted . | . . . Installed . | . . . Triggered . | . . . Machines | -11 -10 -10 ---------- Run | Yrd Mat Sub Machines Disabled . | . . . Max in Single Turn . | . . . Machines Repaired . | . . . Machines Dismantled . | . . . Machines Sabotaged . | . . . Overloaded Fab Kills . | . . . Hacking | -11 -10 -10 --------- Run | Yrd Mat Sub Machines Accessed 8 | . 8 . Terminals 7 | . 7 . Fabricators . | . . . Repair Stations . | . . . Recycling Units 1 | . 1 . Scanalyzers . | . . . Garrison Access . | . . . Total Hacks 11 | . 11 . Successful 7 | . 7 . Failed 4 | . 4 . Catastrophic 1 | . 1 . Database Lockouts . | . . . Manual 11 | . 11 . Terminals 9 | . 9 . Fabricators . | . . . Repair Stations . | . . . Recycling Units 2 | . 2 . Scanalyzers . | . . . Garrison Access . | . . . Terminal Hacks . | . . . Fabricator Hacks . | . . . Repair Station Hacks . | . . . Recycling Unit Hacks . | . . . Scanalyzer . | . . . Garrison Access Hacks . | . . . Unauthorized Hacks 7 | . 7 . Terminals 6 | . 6 . Botnet 6 | . 6 . Fabricators . | . . . Repair Stations . | . . . Recycling Units 1 | . 1 . Tunnel 1 | . 1 . Scanalyzers . | . . . Garrison Access . | . . . Data Cores Recovered . | . . . Used . | . . . Hacking Detections 4 | . 4 . Full Trace Events . | . . . Feedback Events . | . . . Feedback Blocked . | . . . Robot Schematics Acquired . | . . . Robots Built . | . . . Authchips . | . . . Time . | . . . Total Robot Build Rating . | . . . Part Schematics Acquired . | . . . Parts Built . | . . . Authchips . | . . . Time . | . . . Total Part Build Rating . | . . . Parts Repaired . | . . . Time . | . . . Parts Recycled . | . . . Recycled Matter . | . . . Retrieved Matter . | . . . Retrieved Components . | . . . Parts Scanalyzed . | . . . Part Schematics Acquired . | . . . Parts Damaged . | . . . Bothacking | -11 -10 -10 ------------ Run | Yrd Mat Sub Used RIF Installer . | . . . Robots Hacked . | . . . Non-combat . | . . . Combat . | . . . Robot Hacks Applied . | . . . Relay Couplers Released . | . . . Fabnet Peak Effective % . | . . . Robots Rewired . | . . . Allies Hacked . | . . . Hacks Repelled . | . . . Allies | -11 -10 -10 -------- Run | Yrd Mat Sub Total Allies . | . . . Largest Group . | . . . Highest-Rated Group . | . . . Highest-Rated Ally . | . . . Total Orders . | . . . Ally Attacks . | . . . Total Damage . | . . . Kills . | . . . Allies Corrupted . | . . . Allies Melted . | . . . Intel | -11 -10 -10 ------- Run | Yrd Mat Sub Active Infowar (turns) . | . . . Robot Analysis Total . | . . . Derelict Logs Recovered 2 | . . 2 Drone Launches . | . . . Drone Recoveries . | . . . Exploration | -11 -10 -10 ------------- Run | Yrd Mat Sub Turns Passed 2588 | 53 1333 1202 Spaces Moved 1709 | 43 887 779 Core 8 | 8 . . Treads . | . . . Legs 1701 | 35 887 779 Wheels . | . . . Hover . | . . . Flight . | . . . Fastest Speed 50 | 50 120 120 Average Speed 122 | 106 120 125 Slowest Speed 126 | 120 120 126 Overloaded Moves . | . . . Propulsion Burnouts . | . . . Robots Hopped . | . . . Potential Cave-ins . | . . . Cave-ins Triggered . | . . . Exploration Rate (%) 45 | 3 96 37 Regions Visited 2 Branch Regions 1 Pre-discovered Areas 2 | . 1 1 Known Exits Taken . | . . . Unknown Exits Taken 2 | 1 1 . Scrap Searched 3 | . . 3 Spaces Dug . | . . . Terrain Destroyed . | . . . Melee . | . . . Projectile . | . . . AOE . | . . . Terrain Rammed . | . . . Walls Destroyed . | . . . Machines Disabled . | . . . Actions | -11 -10 -10 --------- Run | Yrd Mat Sub Total 1998 | 47 1036 915 Wait 103 | . 54 49 Move 1707 | 42 886 779 Hop . | . . . Pick Up 7 | . 1 6 Fast Attach 16 | 5 5 6 Attach 1 | . . 1 Detach . | . . . Swap 12 | . 3 9 Drop 18 | . 6 12 Fire 107 | . 61 46 Melee . | . . . Ram . | . . . Kick 3 | . 1 2 Crush . | . . . Escape Stasis . | . . . Rewire . | . . . Trap . | . . . Miscellaneous 24 | . 19 5 Route ------- -11/Scrapyard -10/Materials (discovered 5 exits: [*Mat x3] / [*Min] / [*Sub]) -10/Subcaves (discovered 2 exits: [*Mat] / [*Rec]) History --------- Turn | Location | Event 5 | -11/Scrapyard | Upgraded with Propulsion slot (x1) 5 | -11/Scrapyard | Upgraded with Weapon slot (x1) 21 | -11/Scrapyard | Discovered new exit (range 16) 54 | -11/Scrapyard | Entered Materials 214 | -10/Materials | Discovered new exit (range 12) 311 | -10/Materials | Build established: Mutant 538 | -10/Materials | Discovered new exit (range 16) 632 | -10/Materials | Core integrity fell below 50% 654 | -10/Materials | Derelicts attacked the area 891 | -10/Materials | Discovered new exit (range 9) 1005 | -10/Materials | Discovered new exit (range 9) 1253 | -10/Materials | Reached level 2 1269 | -10/Materials | Discovered new exit (range 13) 1307 | -10/Materials | Upgraded with Propulsion slot (x1) 1307 | -10/Materials | Upgraded with Utility slot (x1) 1387 | -10/Materials | Entered Subcaves 1388 | -10/Subcaves | Approached by a straggling Scientist 1390 | -10/Subcaves | Learned location of Storage (-9) 1485 | -10/Subcaves | A swath of the cavern ceiling suddenly collapsed 1545 | -10/Subcaves | A swath of the cavern ceiling suddenly collapsed 1550 | -10/Subcaves | Learned Materials stockpile data 1588 | -10/Subcaves | Shifting Twisted Machinery released Sub. Machine Gun 1639 | -10/Subcaves | Build established: Scavenger-Mutant 1721 | -10/Subcaves | Shifting Twisted Machinery released Multitool 1951 | -10/Subcaves | Ambushed by angry Subdweller bent on revenge 1996 | -10/Subcaves | Reached level 3 2036 | -10/Subcaves | Discovered new exit (range 11) 2236 | -10/Subcaves | Discovered new exit (range 5) 2344 | -10/Subcaves | Core integrity fell below 20% 2589 | -10/Subcaves | Destroyed by 2E-9H7(R) with Subdweller Machine Gun Last Messages --------------- 02131_ Dropped Sub. Machine Gun. 02134_ Acquired Battle Cannon. 02141_ Acquired Mak. Light Armor Plating. 02142_ Acquired 10 matter. 02142_ Dropped Tractor Beam. 02236_ EXIT=FOUND 02344_ Sub. Laser fried. 02344_ Disposable Heat Sink fried. 02344_ NB-KLX(R) destroyed. 02351_ Acquired 25 matter. 02470_ Y-45 Defender destroyed. 02475_ Corrupted Heat Sink fries itself beyond repair. 02475_ Corrupted Hvy. Assault Rifle fries itself beyond repair. 02477_ Corrupted Beam Rifle fries itself beyond repair. 02478_ Corrupted Heat Sink fries itself beyond repair. 02575_ Sub. Laser fried. 02575_ Sub. Monowheel fried. 02575_ 5S-HRN(R) destroyed. 02579_ Dropped Mak. Light Armor Plating. 02581_ Acquired Scrap Shield. Map ----- +----------------------------------------------------+ | ???????????????# # ##?####?# ##""" | | ???????????????# #??????# ##" | | ???????????????# ##??????## ## """ | | ???????????????# #????????## ##""" | | ???????????????## ########??# ####" | | ????????????????## #??# ##?## | | ?????????????????###### ##?## ##?? | | ?????????????????????## ##?##""" ##? | | ????????????????????## #### """ #? | | ???????????????????## ## """ ## | | ??????????????????## # | | ????????????????### # | | ????????????????# ## ### " | | ????????????????# #### ### | | ????????????????# ##### ## | | ????????????????## #### ## ## ## | | ?????????????????# #?# ## ## ###### | | ?????????????????###?## ## ##???## | | ??????????????????##### #?# | | ?????????????????## ## ? | | ?????????????????# ##### ?? | | ?????????????????# ## ##????? | | ????????????????## #### #???????## | | ???????????????## %%#### #?? #???????# | | ???????????????# ##?## ##??????? | | ???????????????# @#??## #???????? | | ???????????????## #???# #???????? | | ????????????????## R##???# ## ????????# | | ????????????????# ????######?# #???????? | | ???????????????# ???????????????????????? | | ??????????????# ???????????????????????? | | ??????????????# ???????????????????????? | | ??????????????# ???????????????????????? | | ??????????????# ???????????????????????? | | ??????????????#### ##??????????????????????? | | ?????????????????###????????????????????????? | | ????????????????????????????????????????????? | | ????????????????????????????????????????????? | | ????????????????????????????????????????????? | | ????????????????????????????????????????????? | | ????????????????????????????????????????????? | | ????????????????????????????????????????????? | | ????????????????????????????????????????????? | | ????????????????????????????????????????????? | | ????????????????????????????????????????????? | | ????????????????????????????????????????????? | | ????????????????????????????????????????????? | | ????????????????????????????????????????????? | | ????????????????????????????????????????????? | | ????????????????????????????????????????????? | +----------------------------------------------------+ Best States ------------- Heat Dissipation 35 Energy Generation 14 Energy Capacity 250 Matter Stores 300 Matter Capacity 300 Sight Range 16 Terrain Scan Density 10 Armor Coverage 100 Evasion (%) 55 Item Schematics ----------------- None Robot Schematics ------------------ None Fabricated ------------ Nothing Repaired ---------- Nothing Alien Tech Used ----------------- None Achievements -------------- None Challenges ------------ None RPGLIKE | -11 -10 -10 --------- Run | Yrd Mat Sub Levels Raised 2 | . 1 1 XP Earned 6520 | 3000 1820 1700 XP Spent 4150 | 2850 1300 . Upgrades 9 | 7 2 . Propulsion Slot 2 | 1 1 . Utility Slot 1 | . 1 . Weapon Slot 1 | 1 . . Mass Support 1 | 1 . . Inventory Capacity 1 | 1 . . Ranged Accuracy 3 | 3 . . Protomatter Created 223 | . 185 38 Integrity Restored 537 | . 423 114 Core 537 | . 423 114 Protomatter Decayed 226 | . 111 115 Game ------ Seed CloakingThunderScanner Manual? 0 Play Time 00:19:49 Cumulative 124.0 hours Start 2025.08.19 @ 02:27:41 End 2025.08.19 @ 02:46:42 Sessions 1 Manual Loads 0 Difficulty Rogue Special Mode Winter2019/RPGLIKE Game No. 56 Rogue 52 Adventurer 4 Explorer 0 Win Type - Total 1 Types 1/0/0/0/0/0/0/0/0/0 Lore% 58 Gallery% 46 Achievement% 50 Wizard Run 0 Options --------- Layout 0 ASCII 0 Keyboard 0 Movement Arrows Keybinds 0 Fullscreen 2 Font 32/SmallcapsGlow Map View 88x55 Zoom Use 0% Tactical HUD 1 Map Filters NONE Filters NONE Steam 1 RUN: b9586bc6-92e5-4a5d-9d11-06a38fb148cf